Cogmind - Beta 15 @@@ ROGUE MODE // 2025.05.28 @ 18:17:43 // Winter2022/Polymind Player: Figgis Result: Destroyed by P-80 Master with Gamma Rifle Performance ------------- Evolutions (5) 2500 Regions Visited (13) 2600 Robots Destroyed (56) 280 Value Destroyed (2128) 2128 Prototype IDs (14) 280 Alien Tech Used (0) 0 Bonus (8363) 8363 TOTAL SCORE: 15351 Bonus ------- Polymind Skill 7260 Follower Combat Kills 142 Registered with UFD 300 Met Optimus in HQ 500 Met Warlord at Base 500 MAIN.C Attacked Warlord 500 Friendly Fire -839 Cogmind --------- Core Integrity 0/1000 Matter 0/0 Energy 98/100 System Corruption 0% Temperature Cool (0) Movement Core (50) Location -5/Warlord Parts ------- > --- POWER (1) -------- (None) > --- PROPULSION (2) --- (None) > --- UTILITY (2) ------ (None) > --- WEAPON (2) ------- (None) > --- INVENTORY (0) ---- (None) Peak State ------------ > --- POWER ------------ Heavy Deuterium Engine > --- PROPULSION ------- Combat Antigrav System > --- UTILITY ---------- Advanced Launcher Guidance Computer Improved Target Analyzer Experimental Core Analyzer Improved Armor Integrity Analyzer EX Chip 1 EX Chip 1 EX Chip 1 EX Chip 1 EX Chip 1 EX Chip 1 EX Chip 1 EX Chip 1 EX Chip 1 EX Chip 1 EX Chip 2 EX Chip 2 EX Chip 2 EX Chip 2 EX Chip 2 EX Chip 2 EX Chip 2 EX Chip 2 > --- WEAPON ----------- AWS/EX-DEC > --- INVENTORY -------- Deploy-a-Sentry [Rating: 99] Favorites ----------- Power Light Antimatter Reactor Engine Heavy Deuterium Engine Power Core Light Nuclear Core Reactor Light Antimatter Reactor Propulsion Combat Antigrav System Leg Flexi-carbon Leg Hover Unit Combat Antigrav System Flight Unit Flight Unit Utility EX Chip 1 Device Advanced Heat Sink Processor Improved Target Analyzer Hackware EX Chip 1 Weapon AWS/EX-DEC Energy Gun AWS/EX-DEC Ballistic Gun Light Assault Rifle Special Weapon Improved Remote Datajack Build | -11 -10 -10 -10 -9 -8 -8 -8 -8 -6 -5 -5 -5 -5 ------- Run | Yrd Mat Min Exi Min Mat Sto Rec Scr Fac Fac Upp Upp War Slots Evolved . | . . . . . . . . . . . . . . Power . | . . . . . . . . . . . . . . Propulsion . | . . . . . . . . . . . . . . Utility . | . . . . . . . . . . . . . . Weapon . | . . . . . . . . . . . . . . Parts Attached . | . . . . . . . . . . . . . . Power . | . . . . . . . . . . . . . . Engine . | . . . . . . . . . . . . . . Core . | . . . . . . . . . . . . . . Reactor . | . . . . . . . . . . . . . . Propulsion . | . . . . . . . . . . . . . . Treads . | . . . . . . . . . . . . . . Leg . | . . . . . . . . . . . . . . Wheel . | . . . . . . . . . . . . . . Hover . | . . . . . . . . . . . . . . Flight . | . . . . . . . . . . . . . . Utility . | . . . . . . . . . . . . . . Device . | . . . . . . . . . . . . . . Storage . | . . . . . . . . . . . . . . Processor . | . . . . . . . . . . . . . . Hackware . | . . . . . . . . . . . . . . Protection . | . . . . . . . . . . . . . . Artifact . | . . . . . . . . . . . . . . Weapon . | . . . . . . . . . . . . . . Energy Gun . | . . . . . . . . . . . . . . Energy Cannon . | . . . . . . . . . . . . . . Ballistic Gun . | . . . . . . . . . . . . . . Ballistic Cannon . | . . . . . . . . . . . . . . Launcher . | . . . . . . . . . . . . . . Special Weapon . | . . . . . . . . . . . . . . Impact Weapon . | . . . . . . . . . . . . . . Slashing Weapon . | . . . . . . . . . . . . . . Piercing Weapon . | . . . . . . . . . . . . . . Special Melee Weapon . | . . . . . . . . . . . . . . Unidentified Prototypes . | . . . . . . . . . . . . . . Parts Lost 23 | . 5 . . . . . 2 . 1 11 4 . . Power 4 | . 1 . . . . . 1 . . 2 . . . Propulsion 2 | . 2 . . . . . . . . . . . . Utility 12 | . 1 . . . . . 1 . . 6 4 . . Weapon 5 | . 1 . . . . . . . 1 3 . . . Highest Loss Streak 7 | . 3 . . . . . 2 . 1 7 4 . . To Critical Strikes . | . . . . . . . . . . . . . . Average Backups . | . . . . . . . . . . . . . . Power . | . . . . . . . . . . . . . . Propulsion . | . . . . . . . . . . . . . . Utility . | . . . . . . . . . . . . . . Weapon . | . . . . . . . . . . . . . . Tool/Special . | . . . . . . . . . . . . . . Unused Backups . | . . . . . . . . . . . . . . Power . | . . . . . . . . . . . . . . Propulsion . | . . . . . . . . . . . . . . Utility . | . . . . . . . . . . . . . . Weapon . | . . . . . . . . . . . . . . Tool/Special . | . . . . . . . . . . . . . . Average Slot Usage (%) 86 | . 91 100 65 96 96 93 86 84 86 88 71 100 86 Engine 1 | . 4 25 7 3 3 2 1 . . . . . . Core 2 | . 14 . . . . . . . 1 2 . . . Reactor 3 | . . . . . . . . . . . 4 14 12 Leg 12 | . 36 . . . . . . . . . 8 28 24 Hover 1 | . . . 1 3 3 3 3 3 3 3 3 . . Device 9 | . 17 . . . . . . . . . 9 28 24 Processor 8 | . . . 6 15 15 15 15 15 15 15 10 . . Hackware 32 | . . . 28 69 69 66 62 61 61 58 23 . . Energy Gun 11 | . 17 . 1 3 3 3 3 3 3 6 9 28 24 Peak Build Rating 99 | . 10 4 99 99 99 99 93 91 98 92 58 35 35 Average Rating 58 | . 7 4 41 99 99 95 90 90 91 88 49 35 30 On Entrance 57 | . . 4 4 99 99 99 93 90 91 92 58 35 35 Naked Turns 251 | . 47 . 45 . . . . . . . 1 . 158 Heaviest Build 21 | . 9 4 21 21 21 21 11 10 14 12 21 21 21 Greatest Support 40 | 3 20 8 21 21 21 21 21 21 21 21 40 40 40 Greatest Overweight (x) . | . . . . . . . . . . . . . . Average Overweight (x) . | . . . . . . . . . . . . . . Largest Inventory Capacity 5 | . 1 . 2 2 2 2 2 2 2 2 5 1 1 Average Capacity 1 | . . . . 2 2 2 2 2 2 2 1 1 . Most Carried 2 | . . . 1 1 1 1 1 2 2 2 1 1 . Average Carried . | . . . . 1 1 1 1 1 2 1 . . . Final Capacity 2 | . . . 2 2 2 2 2 2 2 2 1 1 . Final Carried 2 | . . . 1 1 1 1 1 2 2 1 1 . . Class Distribution -------------------- 55% | Assembler 38% | Grunt 3% | Cogmind Dominant Class ---------------- Grunt | -10/Materials Swarmer | -10/Mines Cogmind | -10/Exiles Assembler | -9/Mines Assembler | -8/Materials Assembler | -8/Storage Assembler | -8/Recycling Assembler | -8/Scraptown Assembler | -6/Factory Assembler | -5/Factory Assembler | -5/Upper Caves Grunt | -5/Upper Caves Grunt | -5/Warlord Resources | -11 -10 -10 -10 -9 -8 -8 -8 -8 -6 -5 -5 -5 -5 ----------- Run | Yrd Mat Min Exi Min Mat Sto Rec Scr Fac Fac Upp Upp War Matter Collected . | . . . . . . . . . . . . . . Remotely . | . . . . . . . . . . . . . . Salvage Created 2167 | . 221 . . . 526 539 445 . 72 28 336 . . Parts 130 | . 21 . . . 15 27 18 . 27 2 20 . . Haulers Intercepted . | . . . . . . . . . . . . . . Recyclers Shooed 1 | . . . . . . 1 . . . . . . . Parts Field Recycled . | . . . . . . . . . . . . . . Retrieved Matter . | . . . . . . . . . . . . . . Parts Self-Destructed 12 | . . . . . . . . . . . 12 . . Prevented 5 | . . . . . . . . . . . 5 . . Kills | -11 -10 -10 -10 -9 -8 -8 -8 -8 -6 -5 -5 -5 -5 ------- Run | Yrd Mat Min Exi Min Mat Sto Rec Scr Fac Fac Upp Upp War Combat Hostiles Destroyed 46 | . 10 . . . 7 14 6 . 5 . 4 . . Melee 1 | . 1 . . . . . . . . . . . . Guns 40 | . 8 . . . 5 14 5 . 4 . 4 . . Classes Destroyed 11 | . 4 . . . 3 . 2 . 2 . . . . Operator 1 | . . . . . . . . . 1 . . . . Watcher 8 | . 2 . . . 2 1 . . 2 1 . . . Swarmer 7 | . 3 . . . . 3 . . 1 . . . . Grunt 19 | . 6 . . . 2 8 . . 1 . 2 . . Brawler 1 | . . . . . . . . . 1 . . . . Duelist 1 | . . . . . 1 . . . . . . . . Protector 1 | . . . . . . . 1 . . . . . . Sentry 9 | . . . . . 3 2 4 . . . . . . Hunter 3 | . . . . . 1 1 . . 1 . . . . Programmer 4 | . . . . . . . 1 . 1 . 2 . . Subdweller 1 | . 1 . . . . . . . . . . . . Best Kill Streak 6 | . 5 . . . 4 6 2 . 4 1 3 . . Combat Bots Only 6 | . 5 . . . 4 6 2 . 3 . 3 . . Max Kills in Single Turn 1 | . 1 . . . 1 1 1 . 1 1 1 . . Gunslinging . | . . . . . . . . . . . . . . Exploded . | . . . . . . . . . . . . . . Melee 1 | . 1 . . . . . . . . . . . . Uniques/NPCs Destroyed 1 | . . . . . . . . . . . 1 . . EX-DEC (-5/Upper Caves) Combat | -11 -10 -10 -10 -9 -8 -8 -8 -8 -6 -5 -5 -5 -5 -------- Run | Yrd Mat Min Exi Min Mat Sto Rec Scr Fac Fac Upp Upp War Hostile Shots Fired 313 | . 58 . 4 . 12 20 10 . 30 81 86 2 10 Missed 99 | . 12 . 2 . 4 9 3 . 8 32 25 . 4 Hits 214 | . 46 . 2 . 8 11 7 . 22 49 61 2 6 Melee 2 | . . . . . . . . . . . . 2 . Projectile 212 | . 46 . 2 . 8 11 7 . 22 49 61 . 6 Critical Strikes 10 | . . . . . 1 1 . . 1 . 7 . . Damage Taken 2835 | . 556 . 17 4 115 149 57 . 176 802 795 5 159 Core 1294 | . 112 . 17 . 69 46 15 . 31 356 489 . 159 Absorbed by Shields . | . . . . . . . . . . . . . . Ignored by Resistances 659 | . . . . . . . 40 . 137 . 482 . . Core Remaining (%) 80 | 100 . . . 48 . . . 76 96 . . . . Volleys Fired 72 | . 40 . . . . . . . . 10 20 2 . Largest 2 | . 1 . . . . . . . . 1 2 2 . Hottest 138 | . 65 . . . . . . . . 50 138 138 . Shots Fired 193 | . 40 . . 1 21 29 15 . 37 10 36 4 . Gun 193 | . 40 . . 1 21 29 15 . 37 10 36 4 . Cannon . | . . . . . . . . . . . . . . Launcher . | . . . . . . . . . . . . . . Special . | . . . . . . . . . . . . . . Kinetic . | . . . . . . . . . . . . . . Thermal 78 | . 40 . . . . . . . . 10 24 4 . Explosive . | . . . . . . . . . . . . . . Electromagnetic 115 | . . . . 1 21 29 15 . 37 . 12 . . Robot Hit Streak 30 | . 17 . . 1 19 17 13 . 30 3 12 2 . Robot Miss Streak 6 | . 1 . . 1 1 2 1 . 6 3 1 1 . Penetration Max . | . . . . . . . . . . . . . . Secondary Targets . | . . . . . . . . . . . . . . Autonomous 103 | . . . . 1 21 29 15 . 37 . . . . Shots Hit Robots 165 | . 32 . . 1 21 27 15 . 33 6 28 2 . Core Hits 110 | . 16 . . 1 15 26 12 . 22 4 14 . . Critical Kills . | . . . . . . . . . . . . . . Critical Parts Destroyed . | . . . . . . . . . . . . . . Critical Strikes 12 | . . . . . 2 3 2 . 4 . 1 . . Burn 1 | . . . . . . . . . . . 1 . . Corrupt 11 | . . . . . 2 3 2 . 4 . . . . Melee Attacks . | . . . . . . . . . . . . . . Impact . | . . . . . . . . . . . . . . Slashing . | . . . . . . . . . . . . . . Piercing . | . . . . . . . . . . . . . . Sneak Attacks . | . . . . . . . . . . . . . . Combat Hostiles . | . . . . . . . . . . . . . . Follow-up Attacks . | . . . . . . . . . . . . . . Damage Inflicted 3384 | . 485 . . 26 601 790 307 . 606 114 414 41 . Guns 3335 | . 462 . . 18 601 790 307 . 606 96 414 41 . Cannons . | . . . . . . . . . . . . . . Explosions . | . . . . . . . . . . . . . . Melee . | . . . . . . . . . . . . . . Ramming 49 | . 23 . . 8 . . . . . 18 . . . Kinetic . | . . . . . . . . . . . . . . Thermal 952 | . 462 . . . . . . . . 96 353 41 . Explosive . | . . . . . . . . . . . . . . Electromagnetic 2383 | . . . . 18 601 790 307 . 606 . 61 . . Impact . | . . . . . . . . . . . . . . Slashing . | . . . . . . . . . . . . . . Piercing . | . . . . . . . . . . . . . . Highest Corruption 1 | . . . . . . . . . . 1 1 1 1 Average Corruption 1 | . . . . . . . . . . 1 1 1 1 Corruption Purged . | . . . . . . . . . . . . . . Corruption Blocked . | . . . . . . . . . . . . . . Effects 5 | . . . . . . . . . . . 4 . 1 Message Errors 1 | . . . . . . . . . . . 1 . . Heat Flow Errors 1 | . . . . . . . . . . . 1 . . Energy Discharges 1 | . . . . . . . . . . . 1 . . Data Loss (minor) 1 | . . . . . . . . . . . 1 . . Data Loss (major) 1 | . . . . . . . . . . . . . 1 Overload Shots . | . . . . . . . . . . . . . . Overflow Damage . | . . . . . . . . . . . . . . Projectiles . | . . . . . . . . . . . . . . Explosions . | . . . . . . . . . . . . . . Melee . | . . . . . . . . . . . . . . Knockbacks . | . . . . . . . . . . . . . . Impact . | . . . . . . . . . . . . . . Kinetic . | . . . . . . . . . . . . . . Secondary . | . . . . . . . . . . . . . . Self-Inflicted Damage 10 | . . . . 4 . . . . . 6 . . . Shots . | . . . . . . . . . . . . . . Rammed 8 | . . . . 1 . . . . . 7 . . . Targets Rammed 25 | . 17 . . 1 . . . . . 7 . . . Kicked 17 | . 17 . . . . . . . . . . . . Crushed . | . . . . . . . . . . . . . . Highest Temperature 147 | . 48 . . . 17 22 . . . 18 147 . . Average Temperature 43 | . 20 . . . 12 15 . . . 10 80 . . Received Heat Transfer 618 | . 192 . . . 54 81 18 . 27 54 192 . . Siege Activations . | . . . . . . . . . . . . . . Martial Activations . | . . . . . . . . . . . . . . Shielding Activations . | . . . . . . . . . . . . . . Robots Disrupted . | . . . . . . . . . . . . . . Combat Hostiles . | . . . . . . . . . . . . . . Robots Corrupted 4 | . . . . . 2 . 1 . 1 . . . . Combat Hostiles 4 | . . . . . 2 . 1 . 1 . . . . Parts Fried 12 | . . . . . 6 2 1 . 3 . . . . Impact Corruptions . | . . . . . . . . . . . . . . Robots Melted 1 | . 1 . . . . . . . . . . . . Combat Hostiles 1 | . 1 . . . . . . . . . . . . Parts Melted 5 | . 4 . . . . . . . . . 1 . . Heat Transferred 2158 | . 1016 . . . . . . . . 222 833 87 . Parts Sabotaged . | . . . . . . . . . . . . . . Parts Stolen 1 | . . . . . . . . . . . . 1 . Parts Stripped . | . . . . . . . . . . . . . . Power Chain Reactions . | . . . . . . . . . . . . . . Alert | -11 -10 -10 -10 -9 -8 -8 -8 -8 -6 -5 -5 -5 -5 ------- Run | Yrd Mat Min Exi Min Mat Sto Rec Scr Fac Fac Upp Upp War Maximum Alert Level 1 | . . . . . . 1 . . . . . . . Low Security (%) 98 | 100 100 100 . 100 100 90 100 . 100 100 . . . Level 1 1 | . . . . . . 9 . . . . . . . Level 2 . | . . . . . . . . . . . . . . Level 3 . | . . . . . . . . . . . . . . Level 4 . | . . . . . . . . . . . . . . Level 5 . | . . . . . . . . . . . . . . High Security . | . . . . . . . . . . . . . . Max Security . | . . . . . . . . . . . . . . Peak Influence 291 | . 115 . . 30 122 291 79 . 60 150 . . . Initial 59 | . . . . . . 51 59 . . . . . . Average 32 | . 21 . . 8 23 143 41 . 5 16 . . . Influence Increases 1490 | . 254 . . 30 219 422 105 . 174 196 90 . . Destroy 0b10 Robot/C 980 | . 180 . . . 140 280 100 . 100 100 80 . . Destroy 0b10 Robot/NC 50 | . 10 . . . 10 5 5 . 15 5 . . . Destroy Leader 206 | . 34 . . . 54 62 . . 24 22 10 . . Allied During Kill 9 | . . . . . . . . . . 9 . . . Successful Hack 20 | . . . . . . . . . 20 . . . . Disable Machine 15 | . 15 . . . . . . . . . . . . Partial Spotted 45 | . . . . . 15 15 . . . 15 . . . Lose Combat Pursuer 165 | . 15 . . 30 . 60 . . 15 45 . . . Influence Decreases 1490 | . 252 2 . 30 97 391 254 4 174 152 134 . . Entered New Map 188 | . . 2 . . . 71 94 4 . . 17 . . Time Decay 904 | . 242 . . 30 50 170 140 . 108 47 117 . . Lost Part 125 | . 10 . . . . . 20 . 10 85 . . . Lost Ally 20 | . . . . . . . . . . 20 . . . Purge Threat 253 | . . . . . 47 150 . . 56 . . . . Squads Dispatched 13 | . 3 1 . . 1 2 . . 5 1 . . . Investigation 7 | . 1 1 . . . 1 . . 4 . . . . Extermination 2 | . . . . . . . . . 1 1 . . . Reinforcement 4 | . 2 . . . 1 1 . . . . . . . Assault . | . . . . . . . . . . . . . . Garrison . | . . . . . . . . . . . . . . Intercept . | . . . . . . . . . . . . . . Searches Triggered . | . . . . . . . . . . . . . . Construction Impeded 1 | . . . . . . 1 . . . . . . . Haulers Reinforced . | . . . . . . . . . . . . . . Active Scanning Responses . | . . . . . . . . . . . . . . Cargo Convoy Interrupts . | . . . . . . . . . . . . . . Stealth | -11 -10 -10 -10 -9 -8 -8 -8 -8 -6 -5 -5 -5 -5 --------- Run | Yrd Mat Min Exi Min Mat Sto Rec Scr Fac Fac Upp Upp War Distress Signals 10 | . 2 . . . . 2 . . 2 . . . 4 Communications Jammed . | . . . . . . . . . . . . . . Distress Signals . | . . . . . . . . . . . . . . Times Spotted 116 | . 26 . 1 12 10 16 5 . 8 15 10 1 12 Peak Tracking Total 17 | . 5 . 1 17 4 5 3 . 3 9 4 1 12 Tactical Retreats 7 | . 2 . . 1 . 2 . . 1 1 . . . Traps | -11 -10 -10 -10 -9 -8 -8 -8 -8 -6 -5 -5 -5 -5 ------- Run | Yrd Mat Min Exi Min Mat Sto Rec Scr Fac Fac Upp Upp War Traps Triggered 6 | . 2 . . . . 1 . . 1 2 . . . Indirectly . | . . . . . . . . . . . . . . Trap Hack Attempts . | . . . . . . . . . . . . . . Triggered . | . . . . . . . . . . . . . . Disarmed . | . . . . . . . . . . . . . . Reprogrammed 6 | . . . . . . . . . 6 . . . . Reused . | . . . . . . . . . . . . . . Traps Extracted . | . . . . . . . . . . . . . . Installed . | . . . . . . . . . . . . . . Triggered . | . . . . . . . . . . . . . . Machines | -11 -10 -10 -10 -9 -8 -8 -8 -8 -6 -5 -5 -5 -5 ---------- Run | Yrd Mat Min Exi Min Mat Sto Rec Scr Fac Fac Upp Upp War Machines Disabled 1 | . 1 . . . . . . . . . . . . Max in Single Turn 1 | . 1 . . . . . . . . . . . . Machines Repaired . | . . . . . . . . . . . . . . Machines Dismantled . | . . . . . . . . . . . . . . Machines Sabotaged . | . . . . . . . . . . . . . . Overloaded Fab Kills . | . . . . . . . . . . . . . . Hacking | -11 -10 -10 -10 -9 -8 -8 -8 -8 -6 -5 -5 -5 -5 --------- Run | Yrd Mat Min Exi Min Mat Sto Rec Scr Fac Fac Upp Upp War Machines Accessed 47 | . . 1 1 . 4 9 3 6 11 7 . . 5 Terminals 19 | . . . . . 3 7 . . 5 4 . . . Fabricators 3 | . . . . . . . . . 1 2 . . . Repair Stations 4 | . . . . . . 2 . . 1 1 . . . Recycling Units 5 | . . . . . . . 1 . 4 . . . . Scanalyzers . | . . . . . . . . . . . . . . Garrison Access 1 | . . . . . 1 . . . . . . . . Total Hacks 246 | . . 1 1 . 35 12 25 38 83 39 . . 12 Successful 215 | . . 1 1 . 33 12 25 38 59 34 . . 12 Failed 30 | . . . . . 2 . . . 23 5 . . . Catastrophic 2 | . . . . . . . . . 2 . . . . Database Lockouts 1 | . . . . . . . . . 1 . . . . Manual 123 | . . . . . 29 4 . . 64 26 . . . Terminals 146 | . . . . . 33 10 . . 70 33 . . . Fabricators 9 | . . . . . . . . . 4 5 . . . Repair Stations 7 | . . . . . . 2 . . 4 1 . . . Recycling Units 6 | . . . . . . . 1 . 5 . . . . Scanalyzers . | . . . . . . . . . . . . . . Garrison Access 2 | . . . . . 2 . . . . . . . . Terminal Hacks 169 | . . 1 1 . 25 10 24 38 38 20 . . 12 Record 74 | . . . 1 . 1 . 24 37 . . . . 11 Robot Analysis 14 | . . . . . 7 . . . 6 1 . . . Prototype ID Bank 2 | . . . . . 1 . . . 1 . . . . Open Door 8 | . . 1 . . . 6 . . . . . . 1 Level Access Points 4 | . . . . . 1 . . . 2 1 . . . Branch Access Points 4 | . . . . . 1 1 . . 1 1 . . . Emergency Access Points 7 | . . . . . 2 . . . 2 3 . . . Machine Index 3 | . . . . . 1 . . . 1 1 . . . Recycling Unit Index 1 | . . . . . 1 . . . . . . . . Garrison Index 1 | . . . . . . . . . . 1 . . . Alert Level 2 | . . . . . . . . . 1 1 . . . Unreport Threat 8 | . . . . . 2 1 . . 4 1 . . . Locate Traps 9 | . . . . . 2 1 . . 3 3 . . . Reprogram Traps 1 | . . . . . . . . . 1 . . . . Dispatch Records 4 | . . . . . . . . . 2 2 . . . Maintenance Status 1 | . . . . . 1 . . . . . . . . Security Status 3 | . . . . . 1 . . . 1 1 . . . Surveillance Status 1 | . . . . . 1 . . . . . . . . Patrol Status 1 | . . . . . . . . . 1 . . . . Investigation Status 1 | . . . . . . . . . 1 . . . . Recall Investigation 5 | . . . . . . . . . 5 . . . . Recall Extermination 1 | . . . . . . . . . . 1 . . . Hauler Manifests 1 | . . . . . . . . . 1 . . . . Registered Components 3 | . . . . . 1 . . . 1 1 . . . Registered Prototypes 3 | . . . . . 1 . . . 1 1 . . . Zone Layout 6 | . . . . . 1 1 . . 3 1 . . . Proto ID Catalog 1 | . . . . . . . . 1 . . . . . Fabricator Hacks 2 | . . . . . . . . . 1 1 . . . Network Status 2 | . . . . . . . . . 1 1 . . . Repair Station Hacks 4 | . . . . . . 1 . . 2 1 . . . Refit 4 | . . . . . . 1 . . 2 1 . . . Recycling Unit Hacks 1 | . . . . . . . 1 . . . . . . Report Inventory 1 | . . . . . . . 1 . . . . . . Scanalyzer . | . . . . . . . . . . . . . . Garrison Access Hacks . | . . . . . . . . . . . . . . Unauthorized Hacks 39 | . . . . . 8 1 . . 18 12 . . . Terminals 26 | . . . . . 6 . . . 12 8 . . . Track 4 | . . . . . 1 . . . 2 1 . . . Assimilate 4 | . . . . . 1 . . . 2 1 . . . Botnet 5 | . . . . . 1 . . . 2 2 . . . Disrupt 5 | . . . . . 1 . . . 2 2 . . . Operators 3 | . . . . . 1 . . . 2 . . . . Skim 5 | . . . . . 1 . . . 2 2 . . . Fabricators 5 | . . . . . . . . . 1 4 . . . Liberate 2 | . . . . . . . . . . 2 . . . Fabnet 3 | . . . . . . . . . 1 2 . . . Repair Stations 1 | . . . . . . 1 . . . . . . . Patch 1 | . . . . . . 1 . . . . . . . Recycling Units 5 | . . . . . . . . . 5 . . . . Mask 1 | . . . . . . . . . 1 . . . . Fedlink 4 | . . . . . . . . . 4 . . . . Scanalyzers . | . . . . . . . . . . . . . . Garrison Access 2 | . . . . . 2 . . . . . . . . Reprogram 1 | . . . . . 1 . . . . . . . . Watchers 1 | . . . . . 1 . . . . . . . . Data Cores Recovered . | . . . . . . . . . . . . . . Used . | . . . . . . . . . . . . . . Hacking Detections 15 | . . . . . 3 3 . . 5 4 . . . Full Trace Events . | . . . . . . . . . . . . . . Feedback Events . | . . . . . . . . . . . . . . Feedback Blocked . | . . . . . . . . . . . . . . Robot Schematics Acquired . | . . . . . . . . . . . . . . Robots Built . | . . . . . . . . . . . . . . Authchips . | . . . . . . . . . . . . . . Time . | . . . . . . . . . . . . . . Total Robot Build Rating . | . . . . . . . . . . . . . . Part Schematics Acquired . | . . . . . . . . . . . . . . Parts Built . | . . . . . . . . . . . . . . Authchips . | . . . . . . . . . . . . . . Time . | . . . . . . . . . . . . . . Total Part Build Rating . | . . . . . . . . . . . . . . Parts Repaired . | . . . . . . . . . . . . . . Time . | . . . . . . . . . . . . . . Parts Recycled . | . . . . . . . . . . . . . . Recycled Matter . | . . . . . . . . . . . . . . Retrieved Matter . | . . . . . . . . . . . . . . Retrieved Components . | . . . . . . . . . . . . . . Parts Scanalyzed . | . . . . . . . . . . . . . . Part Schematics Acquired . | . . . . . . . . . . . . . . Parts Damaged . | . . . . . . . . . . . . . . Bothacking | -11 -10 -10 -10 -9 -8 -8 -8 -8 -6 -5 -5 -5 -5 ------------ Run | Yrd Mat Min Exi Min Mat Sto Rec Scr Fac Fac Upp Upp War Used RIF Installer . | . . . . . . . . . . . . . . Robots Hacked 9 | . 3 . . . . . . . . . 3 . 3 Non-combat . | . . . . . . . . . . . . . . Combat 9 | . 3 . . . . . . . . . 3 . 3 Robot Hacks Applied 5 | . 3 . . . . . . . . . 2 . . find_shortcuts 5 | . 3 . . . . . . . . . 2 . . Relay Couplers Released . | . . . . . . . . . . . . . . Fabnet Peak Effective % 3 | . . . . . . . . . . 3 3 3 3 Autooverrided 4 | . . . . . . . . . . . 1 . 3 Robots Rewired . | . . . . . . . . . . . . . . Allies Hacked . | . . . . . . . . . . . . . . Hacks Repelled . | . . . . . . . . . . . . . . Allies | -11 -10 -10 -10 -9 -8 -8 -8 -8 -6 -5 -5 -5 -5 -------- Run | Yrd Mat Min Exi Min Mat Sto Rec Scr Fac Fac Upp Upp War Total Allies 4 | . . . . . . . . . . . 1 . 3 Largest Group 1 | . . . . . . . . . . . 1 . 1 Highest-Rated Group 30 | . . . . . . . . . . . 30 . 29 Highest-Rated Ally 30 | . . . . . . . . . . . 30 . 29 Total Orders . | . . . . . . . . . . . . . . Ally Attacks 29 | . . . . . . . . . . 21 1 . 7 Total Damage 1106 | . . . . . . . . . . 962 49 . 95 Kills 5 | . . . . . . . . . . 5 . . . Allies Corrupted 1 | . . . . . . . . . . . . . 1 Allies Melted 1 | . . . . . . . . . . . . . 1 Turrets Deployed 1 | . . . . . . . . . . 1 . . . Intel | -11 -10 -10 -10 -9 -8 -8 -8 -8 -6 -5 -5 -5 -5 ------- Run | Yrd Mat Min Exi Min Mat Sto Rec Scr Fac Fac Upp Upp War Active Infowar (turns) . | . . . . . . . . . . . . . . Robot Analysis Total 18 | . 3 . . . 7 . . . 6 1 1 . . Derelict Logs Recovered 4 | . . . . 1 . . . . . . 1 2 . Drone Launches . | . . . . . . . . . . . . . . Drone Recoveries . | . . . . . . . . . . . . . . Exploration | -11 -10 -10 -10 -9 -8 -8 -8 -8 -6 -5 -5 -5 -5 ------------- Run | Yrd Mat Min Exi Min Mat Sto Rec Scr Fac Fac Upp Upp War Turns Passed 6484 | 10 967 57 108 103 149 341 282 1073 615 485 793 280 1221 Spaces Moved 6933 | 20 721 154 195 128 183 325 321 1340 736 537 850 229 1194 Core 516 | 20 89 . 90 . . . . . . . 3 . 314 Treads . | . . . . . . . . . . . . . . Legs 1905 | . 626 . . . . . . . . . 170 229 880 Wheels . | . . . . . . . . . . . . . . Hover 4304 | . . . 57 128 183 325 321 1340 736 537 677 . . Flight 208 | . 6 154 48 . . . . . . . . . . Fastest Speed 37 | 50 37 37 37 80 80 80 80 80 80 80 50 120 50 Average Speed 87 | 50 110 37 55 80 80 80 80 80 80 80 86 120 101 Slowest Speed 120 | 50 120 37 80 80 80 80 80 80 80 80 120 120 120 Overloaded Moves . | . . . . . . . . . . . . . . Propulsion Burnouts . | . . . . . . . . . . . . . . Robots Hopped . | . . . . . . . . . . . . . . Potential Cave-ins . | . . . . . . . . . . . . . . Cave-ins Triggered . | . . . . . . . . . . . . . . Exploration Rate (%) 50 | 3 92 46 51 36 30 42 58 88 19 16 92 47 91 Regions Visited 13 Branch Regions 9 Pre-discovered Areas 4 | . . . 1 . . . . . 1 . 1 1 . Known Exits Taken 5 | . . . . . 1 1 . . 1 1 . 1 . Unknown Exits Taken 8 | 1 1 1 1 1 . . 1 1 . . 1 . . Scrap Searched . | . . . . . . . . . . . . . . Spaces Dug . | . . . . . . . . . . . . . . Terrain Destroyed . | . . . . . . . . . . . . . . Melee . | . . . . . . . . . . . . . . Projectile . | . . . . . . . . . . . . . . AOE . | . . . . . . . . . . . . . . Terrain Rammed . | . . . . . . . . . . . . . . Walls Destroyed . | . . . . . . . . . . . . . . Machines Disabled . | . . . . . . . . . . . . . . Actions | -11 -10 -10 -10 -9 -8 -8 -8 -8 -6 -5 -5 -5 -5 --------- Run | Yrd Mat Min Exi Min Mat Sto Rec Scr Fac Fac Upp Upp War Total 7260 | 19 846 153 194 128 185 405 345 1340 761 582 870 230 1202 Wait 226 | . 66 . . . 3 81 25 . 26 18 . . 7 Move 6920 | 19 720 153 194 127 182 324 320 1339 735 536 849 228 1194 Hop . | . . . . . . . . . . . . . . Pick Up 2 | . . . . . . . . 1 . . 1 . . Fast Attach . | . . . . . . . . . . . . . . Attach . | . . . . . . . . . . . . . . Detach . | . . . . . . . . . . . . . . Swap . | . . . . . . . . . . . . . . Drop 1 | . . . . . . . . . . 1 . . . Fire 72 | . 40 . . . . . . . . 10 20 2 . Melee . | . . . . . . . . . . . . . . Ram 8 | . . . . 1 . . . . . 7 . . . Kick 17 | . 17 . . . . . . . . . . . . Crush . | . . . . . . . . . . . . . . Escape Stasis 10 | . . . . . . . . . . 10 . . . Rewire 4 | . 3 . . . . . . . . . . . 1 Trap . | . . . . . . . . . . . . . . Miscellaneous . | . . . . . . . . . . . . . . Route ------- -11/Scrapyard -10/Materials (discovered 5 exits: [*Mat x3] / *Min / [*Sub]) -10/Mines (discovered 2 exits: [*Mat] / *Exi) -10/Exiles -9/Mines -8/Materials (discovered 4 exits: *Fac x3 / *Sto) -8/Storage -8/Recycling (discovered 2 exits: *Fac / *Scr) -8/Scraptown (discovered 2 exits: *Fac x2) -6/Factory (discovered 8 exits: *Fac x4 / Low x2 / Ext x2) -5/Factory (discovered 6 exits: Fac x4 / *Upp x2) -5/Upper Caves -5/Upper Caves -5/Warlord (discovered 1 exit: [*Pro]) History --------- Turn | Location | Event 4 | -11/Scrapyard | Discovered new exit (range 13) 11 | -11/Scrapyard | Entered Materials 30 | -10/Materials | Discovered new exit (range 16) 51 | -10/Materials | Discovered new exit (range 11) 200 | -10/Materials | Discovered new exit (range 7) 511 | -10/Materials | Derelicts attacked the area 840 | -10/Materials | Discovered new exit (range 15) 951 | -10/Materials | Lost 3 parts (1n1u1w) 961 | -10/Materials | Discovered new exit (range 14) 978 | -10/Materials | Entered Mines 1001 | -10/Mines | Discovered new exit (range 8) 1010 | -10/Mines | Met a Derelict shopkeep closing up shop 1034 | -10/Mines | Deemed a non-threat by the Exiles lab entrance 1034 | -10/Mines | Discovered new exit (range 5) 1035 | -10/Mines | Entered Exiles 1044 | -10/Exiles | Met 8R-AWN 1058 | -10/Exiles | Core integrity fell below 50% 1073 | -10/Exiles | Met EX-HEX 1091 | -10/Exiles | Met EX-DEC 1098 | -10/Exiles | Took control of EX-DEC (ally) 1113 | -10/Exiles | Learned location of Zion (-6) 1136 | -10/Exiles | Discovered new exit (range 10) 1143 | -10/Exiles | Left Exiles lab with Deploy-a-Sentry 1143 | -10/Exiles | Entered Mines 1144 | -9/Mines | Assembled infested the area 1149 | -9/Mines | Assisted by a Guerilla fighting off Assembled 1241 | -9/Mines | Discovered new exit (range 4) 1246 | -9/Mines | Entered Materials 1290 | -8/Materials | Identified exit to Storage 1290 | -8/Materials | Identified exit to Factory 1395 | -8/Materials | Entered Storage 1675 | -8/Storage | Identified exit to Recycling 1733 | -8/Storage | Used back door to open Recycling access 1736 | -8/Storage | Entered Recycling 1842 | -8/Recycling | Discovered new exit (range 8) 1992 | -8/Recycling | Scanned before Scraplab entrance 2004 | -8/Recycling | Entered Scraplab 2016 | -8/Recycling | Discovered new exit (range 2) 2018 | -8/Recycling | Entered Scraptown 2124 | -8/Scraptown | Discovered new exit (range 5) 2195 | -8/Scraptown | Visited Spacefarers 2219 | -8/Scraptown | Visited Cave Peace 2243 | -8/Scraptown | Visited Bundlers 2268 | -8/Scraptown | Visited TADAMA 2291 | -8/Scraptown | Visited Symbiants 2467 | -8/Scraptown | Visited Junk Repository 2478 | -8/Scraptown | Visited UFD Registry 2478 | -8/Scraptown | Registered with UFD as "Gammaroller" 2499 | -8/Scraptown | Visited Scrapoid Pod Storage 2511 | -8/Scraptown | Visited Botcube Research 2517 | -8/Scraptown | Found Botcube 2538 | -8/Scraptown | Visited Science Guys 2645 | -8/Scraptown | Visited Curators Association 2663 | -8/Scraptown | Visited Supply Room 2689 | -8/Scraptown | Visited Research Penetration Think Tank 2713 | -8/Scraptown | Visited Junk Cannon Lab 2744 | -8/Scraptown | Visited Cartography Club 2883 | -8/Scraptown | Visited LU-1G1's Boring Crew 3033 | -8/Scraptown | Met Optimus 3033 | -8/Scraptown | Accepted into 0bPrime 3085 | -8/Scraptown | Civil war broke out across Scraptown 3089 | -8/Scraptown | Discovered new exit (range 3) 3091 | -8/Scraptown | Entered Factory 3092 | -6/Factory | Identified exit to Lower Caves 3100 | -6/Factory | Identified exit to Factory 3100 | -6/Factory | Central database locked down 3112 | -6/Factory | Loaded intel: 8 recycling unit locations 3164 | -6/Factory | Learned location of Protoforge (-3) 3255 | -6/Factory | Identified exit to Extension 3538 | -6/Factory | Spotted B-75 Beast 3706 | -6/Factory | Entered another Factory area 3935 | -5/Factory | Identified exit to Factory 3935 | -5/Factory | Identified exit to Upper Caves 4102 | -5/Factory | DAS Turret deployed 4123 | -5/Factory | Lost 4 parts (1p2u1w) 4191 | -5/Factory | Entered Upper Caves 4218 | -5/Upper Caves | Lost 7 parts (1p4u2w) 4462 | -5/Upper Caves | Encountered a Warlord checkpoint 4479 | -5/Upper Caves | Learned location of Armory (-4) 4585 | -5/Upper Caves | Spotted B-75 Beast 4610 | -5/Upper Caves | Attracted the attention of an 0b10 checkpoint 4633 | -5/Upper Caves | Core integrity fell below 50% 4720 | -5/Upper Caves | Lost 4 parts (4u) 4753 | -5/Upper Caves | Core integrity fell below 20% 4842 | -5/Upper Caves | Murdered EX-DEC 4899 | -5/Upper Caves | Discovered new exit (range 3) 4984 | -5/Upper Caves | Entered another Upper Caves area 5215 | -5/Upper Caves | Identified exit to Warlord 5237 | -5/Upper Caves | Spotted 9F-0EQ(f) 5238 | -5/Upper Caves | Encountered a Master Thief 5240 | -5/Upper Caves | Botcube stolen by Master Thief 5264 | -5/Upper Caves | Entered Warlord 5317 | -5/Warlord | Discovered new exit (range 9) 5381 | -5/Warlord | System corruption cleaned by Quarantine Array 5856 | -5/Warlord | Warlord's base attacked by MAIN.C 6206 | -5/Warlord | Warlord forces counterattacked 6217 | -5/Warlord | Rebuked by Warlord 6454 | -5/Warlord | Spotted Striker 6473 | -5/Warlord | Spotted Striker 6485 | -5/Warlord | Destroyed by P-80 Master with Gamma Rifle Last Messages --------------- arriving soon. 06256_ ANNOUNCEMENT: Detected 1 Saboteur squad, 2 Grunt squads, 1 Melee squad, with prototype support. 06327_ Released control of G-67 Veteran. 06328_ G-67 Veteran suffers critical hit (Destroy). 06328_ G-67 Veteran destroyed. 06329_ Acquired 48 Protomatter. 06346_ ANNOUNCEMENT: MAIN.C reinforcements approaching through caves, arriving soon. 06356_ ANNOUNCEMENT: Detected 3 Programmer squads, 1 Hunter squad, with prototype support. 06446_ ANNOUNCEMENT: MAIN.C reinforcements approaching through caves, arriving soon. 06456_ ANNOUNCEMENT: Detected 1 Behemoth squad, 1 Hunter squad, 1 Programmer squad, 1 Grunt squad, with prototype support. 06465_ Penetrated by Slug. 06473_ S-27 Virus triggered Fire Trap. 06473_ Burning plasma bursts from the floor. 06473_ S-27 Virus shuts down. 06473_ S-27 Virus destroyed. Map ----- +----------------------------------------------------+ | ???????????????###+###+###??# #??#""#???????? | | ??########?????# ##### #???""????????? | | ### X""""#?????# + #??""????????? | | # " ""#?????# ####### #????????????? | | # ""#?????# = #?????# ?????????????? | | + "" ""#?????# #????? ?????????????? | | # """""#?????# #?????# #?????????????? | | ########?????# #?????# ######????????? | | #?##########?# #?????# #????????? | | ##""" """"## #?????# #????????? | | ##"""" """"###+############# """" #????????? | | ##"""" """""#?# #?# * # """" #????????? | | ##"""" " "#?# #?# =%[ # """" #????????? | | ##" [[ X "#?# #?# """" # """" #????????? | | ##" "#?# #?# """" / #????????? | | ##" ""#?# #?# """" # #????????? | | ## ""#?# #?# """" # ######????????? | | ## ""#?# #?# ^ # #?????????????? | | ## ""#?# #?# # #?????????????? | | ## ""#?# #?#+######### #?????????????? | | + """""""#?# #?# #???????# #?????????????? | | + """"""""#?# #?# #???????#^^ ^#?????????????? | | ###############?# #?# #???????# #?????????????? | | ???????#####????# ### ##?###### ######????????? | | ######## ###### ## p### #????????? | | ^ p @ #????????? | | ######## ###+## ## ##################????????? | | ???????##### ########?????????????????????????? | | ???????????# #????????????????????????????????? | | ???????????# #????????????????????????????????? | | ???????????# #????????????????????????????????? | | ???????????######????????????????????????????????? | | | | | | | | | | | | | | | | | | | | | | | | | | | | | | | | | | | | | +----------------------------------------------------+ Best States ------------- Heat Dissipation 55 Energy Generation 26 Energy Capacity 235 Matter Stores 96 Matter Capacity 100 Sight Range 16 Terrain Scan Density 10 Resistance: EX 25 Resistance: EM 90 Evasion (%) 62 Launcher Accuracy 40 Target Analysis 6 Core Analysis 8 Armor Integrity Analysis 40 Offensive Hacking 70 Defensive Hacking 56 Item Schematics ----------------- None Robot Schematics ------------------ None Fabricated ------------ Nothing Repaired ---------- Nothing Alien Tech Used ----------------- None Achievements -------------- None Challenges ------------ None Polymind | -11 -10 -10 -10 -9 -8 -8 -8 -8 -6 -5 -5 -5 -5 ---------- Run | Yrd Mat Min Exi Min Mat Sto Rec Scr Fac Fac Upp Upp War Hosts 6 | . 3 . 1 . . . . . . . 2 . . Combat Hostiles 5 | . 3 . . . . . . . . . 2 . . Allies 1 | . . . 1 . . . . . . . . . . Unique Host Classes 4 | . 2 . 1 . . . . . . . 1 . . Average Host Suspicion 49 | . 94 34 . 92 80 94 98 . 84 81 36 54 . Unsuspicious Activity 111 | . 45 . 16 . . . . . . . 30 20 . Returns to Shadow . | . . . . . . . . . . . . . . Fuzzy Dispatches 2 | . . . . . . . . . 1 1 . . . Protomatter Created 2039 | . 112 28 . 70 22 109 . 74 116 27 . . 1481 Used 197 | . 51 . 33 . . . . . . . 113 . . Decayed 609 | . . . . . . . . 58 . . . . 551 Highest Spend 60 | . 30 . 33 . . . . . . . 60 . . Top 5 Hosts by Kills: EX-DEC (-10/Exiles: 32) G-47 Trooper (-10/Materials: 7) G-34 Mercenary (-10/Materials: 3) G-67 Veteran (-5/Upper Caves: 3) P-70 Sage (-5/Upper Caves: 1) Game ------ Seed MasterSensorBay Manual? 0 Play Time 01:01:58 Cumulative 159.2 hours Start 2025.05.28 @ 17:14:42 End 2025.05.28 @ 18:17:43 Sessions 1 Manual Loads 0 Difficulty Rogue Special Mode Winter2022/Polymind Game No. 238 Rogue 235 Adventurer 3 Explorer 0 Win Type - Total 1 Types 1/0/0/0/0/0/0/0/0/0 Lore% 49 Gallery% 56 Achievement% 45 Wizard Run 0 Options --------- Layout 0 ASCII 0 Keyboard 0 Movement Mouse Keybinds 0 Fullscreen 2 Font 18/SmallcapsGlow Map View 76x50 Zoom Use 0% Tactical HUD 1 Map Filters NONE Filters NONE Steam 1 RUN: a374bced-35f3-4998-94a9-91b77ec5b751